[Event "Titled Tuesday Blitz November 07 Early 2023"]
[White "Manukyan, Artyom"]
[Black "Pakleza, Zbigniew"]
[WhiteFideId "13305786"]
[BlackFideId "1119290"]
[WhiteElo "2529"]
[BlackElo "2770"]
[Result "0-1"]
[Round "2"]
[TimeControl "180+1"]
[Date "2023.11.07"]
[WhiteClock "0:00:00"]
[BlackClock "0:00:55"]
[Board "73"]

1. e4 {[%clk 0:03:00]}  d6 {[%clk 0:02:59]} 2. d4 {[%clk 0:03:00]}  Nf6 {[%clk 0:03:00]} 3. Nc3 {[%clk 0:03:00]}  c6 {[%clk 0:03:00]} 4. f4 {[%clk 0:02:58]}  Qb6 {[%clk 0:03:00]} 5. Nf3 {[%clk 0:02:57]}  Bg4 {[%clk 0:03:01]} 6. Be2 {[%clk 0:02:56]}  Bxf3 {[%clk 0:03:01]} 7. Bxf3 {[%clk 0:02:56]}  e5 {[%clk 0:03:01]} 8. fxe5 {[%clk 0:02:43]}  dxe5 {[%clk 0:03:02]} 9. dxe5 {[%clk 0:02:44]}  Nfd7 {[%clk 0:03:02]} 10. e6 {[%clk 0:02:34]}  fxe6 {[%clk 0:03:03]} 11. Qe2 {[%clk 0:02:25]}  Ne5 {[%clk 0:03:01]} 12. Rb1 {[%clk 0:02:14]}  Nbd7 {[%clk 0:03:00]} 13. Be3 {[%clk 0:02:13]}  Bc5 {[%clk 0:03:01]} 14. Bxc5 {[%clk 0:02:00]}  Qxc5 {[%clk 0:03:02]} 15. Qf2 {[%clk 0:01:54]}  Qxf2+ {[%clk 0:03:02]} 16. Kxf2 {[%clk 0:01:55]}  Ke7 {[%clk 0:03:03]} 17. Ke3 {[%clk 0:01:55]}  Rad8 {[%clk 0:02:58]} 18. Rbd1 {[%clk 0:01:55]}  Nc4+ {[%clk 0:02:58]} 19. Ke2 {[%clk 0:01:51]}  Nde5 {[%clk 0:02:44]} 20. b3 {[%clk 0:01:48]}  Na3 {[%clk 0:02:40]} 21. Rc1 {[%clk 0:01:48]}  b5 {[%clk 0:02:27]} 22. Nb1 {[%clk 0:01:45]}  Nxb1 {[%clk 0:02:17]} 23. Rxb1 {[%clk 0:01:46]}  c5 {[%clk 0:02:07]} 24. Rbd1 {[%clk 0:01:45]}  b4 {[%clk 0:02:02]} 25. Ke3 {[%clk 0:01:44]}  Nc6 {[%clk 0:01:56]} 26. Rxd8 {[%clk 0:01:35]}  Rxd8 {[%clk 0:01:56]} 27. Rd1 {[%clk 0:01:33]}  Nd4 {[%clk 0:01:53]} 28. Rd2 {[%clk 0:01:31]}  Kf6 {[%clk 0:01:41]} 29. Be2 {[%clk 0:01:28]}  Ke5 {[%clk 0:01:37]} 30. Bc4 {[%clk 0:01:28]}  Rf8 {[%clk 0:01:26]} 31. Kd3 {[%clk 0:01:14]}  Rf1 {[%clk 0:01:18]} 32. c3 {[%clk 0:01:09]}  Nc6 {[%clk 0:00:57]} 33. Bb5 {[%clk 0:01:00]}  Na5 {[%clk 0:00:57]} 34. cxb4 {[%clk 0:00:56]}  cxb4 {[%clk 0:00:58]} 35. Bc4 {[%clk 0:00:00]}  Rc1 {[%clk 0:00:55]} 0-1


[Site "https://www.chess.com"]

[Event "Titled Tuesday Blitz November 07 Early 2023"]
[White "HeroRubiksCube"]
[Black "Goltsev, Dmitry"]
[BlackFideId "24176710"]
[WhiteElo "2524"]
[BlackElo "2757"]
[Result "0-1"]
[Round "2"]
[TimeControl "180+1"]
[Date "2023.11.07"]
[WhiteClock "0:00:40"]
[BlackClock "0:01:15"]
[Board "75"]

1. e4 {[%clk 0:03:00]}  e6 {[%clk 0:03:00]} 2. d3 {[%clk 0:03:00]}  d5 {[%clk 0:03:01]} 3. Nd2 {[%clk 0:03:01]}  Nf6 {[%clk 0:03:00]} 4. g3 {[%clk 0:03:01]}  Bc5 {[%clk 0:02:59]} 5. h3 {[%clk 0:02:47]}  dxe4 {[%clk 0:02:57]} 6. dxe4 {[%clk 0:02:45]}  e5 {[%clk 0:02:53]} 7. Bg2 {[%clk 0:02:44]}  Nc6 {[%clk 0:02:49]} 8. Ngf3 {[%clk 0:02:43]}  Be6 {[%clk 0:02:45]} 9. O-O {[%clk 0:02:43]}  h6 {[%clk 0:02:42]} 10. Kh2 {[%clk 0:02:42]}  g5 {[%clk 0:02:41]} 11. c3 {[%clk 0:02:33]}  Qd7 {[%clk 0:02:25]} 12. b4 {[%clk 0:02:30]}  Bd6 {[%clk 0:02:22]} 13. Qa4 {[%clk 0:02:22]}  Ne7 {[%clk 0:02:12]} 14. Qxd7+ {[%clk 0:02:18]}  Nxd7 {[%clk 0:02:13]} 15. Nb3 {[%clk 0:02:08]}  Nb6 {[%clk 0:02:04]} 16. Rd1 {[%clk 0:02:04]}  O-O-O {[%clk 0:02:02]} 17. Bf1 {[%clk 0:02:01]}  f5 {[%clk 0:01:58]} 18. Be3 {[%clk 0:01:47]}  fxe4 {[%clk 0:01:52]} 19. Nfd2 {[%clk 0:01:47]}  Ned5 {[%clk 0:01:49]} 20. Nxe4 {[%clk 0:01:34]}  Nxe3 {[%clk 0:01:49]} 21. fxe3 {[%clk 0:01:34]}  Rhf8 {[%clk 0:01:47]} 22. Nbc5 {[%clk 0:01:10]}  Bxc5 {[%clk 0:01:39]} 23. bxc5 {[%clk 0:01:11]}  Nd5 {[%clk 0:01:38]} 24. Bg2 {[%clk 0:01:08]}  Nxe3 {[%clk 0:01:37]} 25. Rxd8+ {[%clk 0:01:08]}  Rxd8 {[%clk 0:01:36]} 26. Re1 {[%clk 0:01:05]}  Rd3 {[%clk 0:01:33]} 27. c6 {[%clk 0:01:02]}  b6 {[%clk 0:01:32]} 28. Bf1 {[%clk 0:00:48]}  Rd1 {[%clk 0:01:19]} 29. Rxe3 {[%clk 0:00:46]}  Rxf1 {[%clk 0:01:19]} 30. g4 {[%clk 0:00:43]}  Bd5 {[%clk 0:01:18]} 31. Nf6 {[%clk 0:00:40]}  Rxf6 {[%clk 0:01:15]} 0-1


[Site "https://www.chess.com"]

[Event "Titled Tuesday Blitz November 07 Early 2023"]
[White "Csonka, Balazs"]
[Black "Jeet, Jain"]
[WhiteFideId "742910"]
[BlackFideId "5073022"]
[WhiteElo "2751"]
[BlackElo "2522"]
[Result "1-0"]
[Round "2"]
[TimeControl "180+1"]
[Date "2023.11.07"]
[WhiteClock "0:00:05"]
[BlackClock "0:00:01"]
[Board "78"]

1. d4 {[%clk 0:03:00]}  c5 {[%clk 0:02:57]} 2. e4 {[%clk 0:02:57]}  cxd4 {[%clk 0:02:55]} 3. Nf3 {[%clk 0:02:57]}  Nc6 {[%clk 0:02:53]} 4. Nxd4 {[%clk 0:02:57]}  g6 {[%clk 0:02:53]} 5. Nc3 {[%clk 0:02:53]}  Bg7 {[%clk 0:02:53]} 6. Be3 {[%clk 0:02:54]}  Nf6 {[%clk 0:02:52]} 7. Nxc6 {[%clk 0:02:48]}  bxc6 {[%clk 0:02:52]} 8. e5 {[%clk 0:02:47]}  Ng8 {[%clk 0:02:52]} 9. Bd4 {[%clk 0:02:32]}  Qa5 {[%clk 0:02:52]} 10. e6 {[%clk 0:02:21]}  Bxd4 {[%clk 0:02:50]} 11. Qxd4 {[%clk 0:02:17]}  Nf6 {[%clk 0:02:37]} 12. exf7+ {[%clk 0:02:07]}  Kxf7 {[%clk 0:02:37]} 13. O-O-O {[%clk 0:02:08]}  Rb8 {[%clk 0:02:29]} 14. Bc4+ {[%clk 0:01:52]}  Kg7 {[%clk 0:02:24]} 15. Rhe1 {[%clk 0:01:46]}  e6 {[%clk 0:02:13]} 16. Ne4 {[%clk 0:01:23]}  Rf8 {[%clk 0:02:12]} 17. Nd6 {[%clk 0:01:23]}  Ba6 {[%clk 0:02:04]} 18. Bb3 {[%clk 0:01:08]}  c5 {[%clk 0:01:45]} 19. Qe5 {[%clk 0:01:02]}  Qb4 {[%clk 0:01:37]} 20. f3 {[%clk 0:00:52]}  Kg8 {[%clk 0:01:19]} 21. a3 {[%clk 0:00:43]}  Qb6 {[%clk 0:01:17]} 22. Re3 {[%clk 0:00:37]}  Qc6 {[%clk 0:01:01]} 23. Rc3 {[%clk 0:00:33]}  c4 {[%clk 0:00:21]} 24. Nxc4 {[%clk 0:00:32]}  Bxc4 {[%clk 0:00:20]} 25. Rxc4 {[%clk 0:00:32]}  Qb6 {[%clk 0:00:20]} 26. Rc7 {[%clk 0:00:28]}  Rf7 {[%clk 0:00:18]} 27. Rc3 {[%clk 0:00:16]}  a5 {[%clk 0:00:18]} 28. Qc5 {[%clk 0:00:13]}  Qb7 {[%clk 0:00:16]} 29. Qxa5 {[%clk 0:00:13]}  Nh5 {[%clk 0:00:15]} 30. Qc7 {[%clk 0:00:12]}  Qb5 {[%clk 0:00:13]} 31. Qc5 {[%clk 0:00:08]}  Qb7 {[%clk 0:00:12]} 32. Qd4 {[%clk 0:00:06]}  Nf4 {[%clk 0:00:11]} 33. Qd2 {[%clk 0:00:06]}  Rbf8 {[%clk 0:00:11]} 34. Kb1 {[%clk 0:00:06]}  d5 {[%clk 0:00:10]} 35. Ka2 {[%clk 0:00:06]}  Rb8 {[%clk 0:00:10]} 36. Re3 {[%clk 0:00:06]}  Rd7 {[%clk 0:00:09]} 37. Rde1 {[%clk 0:00:06]}  Kg7 {[%clk 0:00:08]} 38. g3 {[%clk 0:00:07]}  d4 {[%clk 0:00:08]} 39. Re4 {[%clk 0:00:04]}  Nd5 {[%clk 0:00:07]} 40. Rxe6 {[%clk 0:00:03]}  Ra8 {[%clk 0:00:05]} 41. Qxd4+ {[%clk 0:00:03]}  Kg8 {[%clk 0:00:05]} 42. Re8+ {[%clk 0:00:03]}  Rxe8 {[%clk 0:00:04]} 43. Rxe8+ {[%clk 0:00:04]}  Kf7 {[%clk 0:00:01]} 44. Re5 {[%clk 0:00:05]} 1-0


[Site "https://www.chess.com"]

[Event "Titled Tuesday Blitz November 07 Early 2023"]
[White "Slade, Theodore"]
[Black "Korchmar, Vasiliy"]
[WhiteFideId "426547"]
[BlackFideId "24131750"]
[WhiteElo "2521"]
[BlackElo "2751"]
[Result "1-0"]
[Round "2"]
[TimeControl "180+1"]
[Date "2023.11.07"]
[WhiteClock "0:00:21"]
[BlackClock "0:00:00"]
[Board "79"]

1. d4 {[%clk 0:03:00]}  Nf6 {[%clk 0:02:59]} 2. c4 {[%clk 0:03:01]}  e6 {[%clk 0:02:59]} 3. g3 {[%clk 0:03:01]}  d5 {[%clk 0:02:57]} 4. Bg2 {[%clk 0:03:02]}  dxc4 {[%clk 0:02:48]} 5. Nf3 {[%clk 0:03:02]}  Bb4+ {[%clk 0:02:48]} 6. Nbd2 {[%clk 0:03:02]}  O-O {[%clk 0:02:46]} 7. Qc2 {[%clk 0:02:59]}  a5 {[%clk 0:02:46]} 8. a3 {[%clk 0:02:49]}  Bxd2+ {[%clk 0:02:41]} 9. Bxd2 {[%clk 0:02:49]}  b5 {[%clk 0:02:41]} 10. O-O {[%clk 0:02:44]}  a4 {[%clk 0:02:36]} 11. e4 {[%clk 0:02:28]}  Bb7 {[%clk 0:02:34]} 12. Rfe1 {[%clk 0:02:28]}  h6 {[%clk 0:02:25]} 13. Bc3 {[%clk 0:02:27]}  Nbd7 {[%clk 0:02:13]} 14. Rad1 {[%clk 0:02:26]}  Re8 {[%clk 0:02:05]} 15. h4 {[%clk 0:02:21]}  Ra6 {[%clk 0:01:58]} 16. Ne5 {[%clk 0:02:10]}  Qa8 {[%clk 0:01:55]} 17. f4 {[%clk 0:01:57]}  c5 {[%clk 0:01:34]} 18. d5 {[%clk 0:01:45]}  exd5 {[%clk 0:01:28]} 19. Nxd7 {[%clk 0:01:39]}  Nxd7 {[%clk 0:01:27]} 20. exd5 {[%clk 0:01:40]}  Rxe1+ {[%clk 0:01:25]} 21. Bxe1 {[%clk 0:01:30]}  Nf6 {[%clk 0:01:19]} 22. d6 {[%clk 0:01:23]}  Bxg2 {[%clk 0:01:19]} 23. Qxg2 {[%clk 0:01:24]}  Qxg2+ {[%clk 0:01:15]} 24. Kxg2 {[%clk 0:01:25]}  Nd7 {[%clk 0:01:15]} 25. Bc3 {[%clk 0:01:22]}  f6 {[%clk 0:01:11]} 26. Kf3 {[%clk 0:01:21]}  Kf7 {[%clk 0:01:07]} 27. Ke4 {[%clk 0:01:20]}  Rb6 {[%clk 0:00:42]} 28. Kd5 {[%clk 0:01:03]}  b4 {[%clk 0:00:43]} 29. axb4 {[%clk 0:01:02]}  cxb4 {[%clk 0:00:43]} 30. Bd4 {[%clk 0:01:03]}  Ra6 {[%clk 0:00:20]} 31. Re1 {[%clk 0:01:03]}  c3 {[%clk 0:00:12]} 32. Re7+ {[%clk 0:00:46]}  Kg6 {[%clk 0:00:11]} 33. Rxd7 {[%clk 0:00:41]}  cxb2 {[%clk 0:00:03]} 34. Bxb2 {[%clk 0:00:41]}  a3 {[%clk 0:00:04]} 35. Bd4 {[%clk 0:00:35]}  b3 {[%clk 0:00:03]} 36. Rb7 {[%clk 0:00:26]}  Ra5+ {[%clk 0:00:03]} 37. Ke6 {[%clk 0:00:23]}  b2 {[%clk 0:00:00]} 38. d7 {[%clk 0:00:21]} 1-0


[Site "https://www.chess.com"]

[Event "Titled Tuesday Blitz November 07 Early 2023"]
[White "Llorente Zaro, Alfonso"]
[Black "Kalogeris, Ioannis"]
[WhiteFideId "2254131"]
[BlackFideId "4239563"]
[WhiteElo "2749"]
[BlackElo "2520"]
[Result "0-1"]
[Round "2"]
[TimeControl "180+1"]
[Date "2023.11.07"]
[WhiteClock "0:00:34"]
[BlackClock "0:00:15"]
[Board "80"]

1. e4 {[%clk 0:03:00]}  e5 {[%clk 0:02:49]} 2. Nf3 {[%clk 0:02:58]}  Nc6 {[%clk 0:02:49]} 3. Bc4 {[%clk 0:02:58]}  Bc5 {[%clk 0:02:48]} 4. c3 {[%clk 0:02:58]}  Nf6 {[%clk 0:02:48]} 5. d4 {[%clk 0:02:58]}  exd4 {[%clk 0:02:48]} 6. e5 {[%clk 0:02:58]}  d5 {[%clk 0:02:42]} 7. Bb5 {[%clk 0:02:58]}  Ne4 {[%clk 0:02:19]} 8. cxd4 {[%clk 0:02:58]}  Be7 {[%clk 0:01:59]} 9. Nc3 {[%clk 0:02:54]}  O-O {[%clk 0:01:53]} 10. O-O {[%clk 0:02:53]}  Bg4 {[%clk 0:01:50]} 11. Be3 {[%clk 0:02:53]}  a6 {[%clk 0:01:26]} 12. Be2 {[%clk 0:02:49]}  b5 {[%clk 0:01:16]} 13. Rc1 {[%clk 0:02:45]}  Qd7 {[%clk 0:00:54]} 14. Nxb5 {[%clk 0:02:09]}  axb5 {[%clk 0:00:45]} 15. Bxb5 {[%clk 0:02:10]}  Rxa2 {[%clk 0:00:42]} 16. Bxc6 {[%clk 0:02:09]}  Qe6 {[%clk 0:00:38]} 17. Qb3 {[%clk 0:02:04]}  Bxf3 {[%clk 0:00:38]} 18. gxf3 {[%clk 0:01:59]}  Qg6+ {[%clk 0:00:32]} 19. Kh1 {[%clk 0:01:55]}  Qf5 {[%clk 0:00:29]} 20. Rg1 {[%clk 0:01:46]}  Qxf3+ {[%clk 0:00:29]} 21. Rg2 {[%clk 0:01:46]}  Nxf2+ {[%clk 0:00:30]} 22. Kg1 {[%clk 0:01:41]}  Nh3+ {[%clk 0:00:30]} 23. Kh1 {[%clk 0:01:41]}  Nf4 {[%clk 0:00:30]} 24. Rg1 {[%clk 0:01:31]}  Nxg2 {[%clk 0:00:31]} 25. Bxd5 {[%clk 0:01:29]}  Qxe3 {[%clk 0:00:30]} 26. Qxa2 {[%clk 0:01:17]}  Nf4 {[%clk 0:00:27]} 27. Bc6 {[%clk 0:01:07]}  Qxd4 {[%clk 0:00:26]} 28. e6 {[%clk 0:01:01]}  fxe6 {[%clk 0:00:24]} 29. b3 {[%clk 0:01:01]}  Bc5 {[%clk 0:00:24]} 30. Rf1 {[%clk 0:01:00]}  Nd5 {[%clk 0:00:20]} 31. Rxf8+ {[%clk 0:00:48]}  Kxf8 {[%clk 0:00:21]} 32. Qa8+ {[%clk 0:00:46]}  Ke7 {[%clk 0:00:21]} 33. Qe8+ {[%clk 0:00:46]}  Kf6 {[%clk 0:00:19]} 34. Qd8+ {[%clk 0:00:44]}  Be7 {[%clk 0:00:15]} 35. Qa8 {[%clk 0:00:34]}  Qe4+ {[%clk 0:00:15]} 0-1


[Site "https://www.chess.com"]

[Event "Titled Tuesday Blitz November 07 Early 2023"]
[White "Bilan, Danila"]
[Black "Wong, Yinn Long"]
[WhiteFideId "24161918"]
[BlackFideId "5707684"]
[WhiteElo "2516"]
[BlackElo "2749"]
[Result "0-1"]
[Round "2"]
[TimeControl "180+1"]
[Date "2023.11.07"]
[WhiteClock "0:00:00"]
[BlackClock "0:00:08"]
[Board "81"]

1. d4 {[%clk 0:03:00]}  Nf6 {[%clk 0:02:59]} 2. Nf3 {[%clk 0:03:00]}  g6 {[%clk 0:02:59]} 3. Bg5 {[%clk 0:03:00]}  Bg7 {[%clk 0:02:59]} 4. c3 {[%clk 0:03:01]}  O-O {[%clk 0:02:59]} 5. Nbd2 {[%clk 0:03:01]}  d6 {[%clk 0:02:59]} 6. e4 {[%clk 0:03:00]}  Nc6 {[%clk 0:02:58]} 7. Bc4 {[%clk 0:02:55]}  Nxe4 {[%clk 0:02:44]} 8. Nxe4 {[%clk 0:02:49]}  d5 {[%clk 0:02:44]} 9. Bd3 {[%clk 0:02:44]}  dxe4 {[%clk 0:02:45]} 10. Bxe4 {[%clk 0:02:45]}  h6 {[%clk 0:02:37]} 11. Be3 {[%clk 0:02:31]}  Kh7 {[%clk 0:02:26]} 12. h4 {[%clk 0:02:26]}  Kg8 {[%clk 0:02:08]} 13. h5 {[%clk 0:02:17]}  g5 {[%clk 0:02:06]} 14. Bc2 {[%clk 0:01:21]}  Bg4 {[%clk 0:02:04]} 15. Qd3 {[%clk 0:01:15]}  f5 {[%clk 0:01:57]} 16. Nxg5 {[%clk 0:01:10]}  hxg5 {[%clk 0:01:56]} 17. f3 {[%clk 0:01:10]}  e5 {[%clk 0:01:54]} 18. fxg4 {[%clk 0:01:05]}  exd4 {[%clk 0:01:47]} 19. O-O-O {[%clk 0:00:54]}  Ne5 {[%clk 0:01:40]} 20. Qb5 {[%clk 0:00:35]}  Nxg4 {[%clk 0:00:45]} 21. Bxd4 {[%clk 0:00:22]}  Bxd4 {[%clk 0:00:46]} 22. Rxd4 {[%clk 0:00:22]}  Qe7 {[%clk 0:00:47]} 23. Kb1 {[%clk 0:00:16]}  Ne3 {[%clk 0:00:46]} 24. Rd7 {[%clk 0:00:13]}  Qe8 {[%clk 0:00:38]} 25. Bb3+ {[%clk 0:00:11]}  Kh8 {[%clk 0:00:38]} 26. Qd3 {[%clk 0:00:07]}  Qe5 {[%clk 0:00:38]} 27. Re1 {[%clk 0:00:05]}  Rae8 {[%clk 0:00:35]} 28. a4 {[%clk 0:00:06]}  Rf6 {[%clk 0:00:30]} 29. Ka2 {[%clk 0:00:05]}  Rd6 {[%clk 0:00:31]} 30. Rxd6 {[%clk 0:00:05]}  cxd6 {[%clk 0:00:32]} 31. g3 {[%clk 0:00:03]}  Kg7 {[%clk 0:00:29]} 32. Re2 {[%clk 0:00:03]}  Kh6 {[%clk 0:00:29]} 33. Bf7 {[%clk 0:00:02]}  Re7 {[%clk 0:00:29]} 34. Bb3 {[%clk 0:00:03]}  b6 {[%clk 0:00:27]} 35. Qa6 {[%clk 0:00:03]}  Qxg3 {[%clk 0:00:20]} 36. Qc8 {[%clk 0:00:02]}  Qe5 {[%clk 0:00:21]} 37. Qf8+ {[%clk 0:00:02]}  Qg7 {[%clk 0:00:22]} 38. Qd8 {[%clk 0:00:02]}  Rd7 {[%clk 0:00:13]} 39. Qc8 {[%clk 0:00:02]}  f4 {[%clk 0:00:11]} 40. Qc6 {[%clk 0:00:01]}  g4 {[%clk 0:00:07]} 41. Qe4 {[%clk 0:00:02]}  Kg5 {[%clk 0:00:08]} 42. Rxe3 {[%clk 0:00:02]}  fxe3 {[%clk 0:00:09]} 43. Qxe3+ {[%clk 0:00:03]}  Kxh5 {[%clk 0:00:09]} 44. Be6 {[%clk 0:00:02]}  Re7 {[%clk 0:00:08]} 45. Qe4 {[%clk 0:00:03]}  Kh4 {[%clk 0:00:04]} 46. Qh1+ {[%clk 0:00:03]}  Kg5 {[%clk 0:00:05]} 47. Qd5+ {[%clk 0:00:03]}  Qe5 {[%clk 0:00:06]} 48. Qd2+ {[%clk 0:00:03]}  Qf4 {[%clk 0:00:06]} 49. Qd5+ {[%clk 0:00:03]}  Kf6 {[%clk 0:00:07]} 50. Bc8 {[%clk 0:00:03]}  Qxa4+ {[%clk 0:00:07]} 51. Kb1 {[%clk 0:00:03]}  Qf4 {[%clk 0:00:08]} 52. Qd1 {[%clk 0:00:01]}  Qe4+ {[%clk 0:00:08]} 53. Ka2 {[%clk 0:00:01]}  Kg5 {[%clk 0:00:08]} 54. Qxd6 {[%clk 0:00:01]}  Qa4+ {[%clk 0:00:07]} 55. Qa3 {[%clk 0:00:01]}  Qxa3+ {[%clk 0:00:07]} 56. Kxa3 {[%clk 0:00:00]}  g3 {[%clk 0:00:08]} 0-1


[Site "https://www.chess.com"]

[Event "Titled Tuesday Blitz November 07 Early 2023"]
[White "Bettalli, Francesco"]
[Black "Kourkoulos-Arditis, Stamatis"]
[WhiteFideId "2816453"]
[BlackFideId "4221990"]
[WhiteElo "2511"]
[BlackElo "2740"]
[Result "1-0"]
[Round "2"]
[TimeControl "180+1"]
[Date "2023.11.07"]
[WhiteClock "0:00:45"]
[BlackClock "0:00:00"]
[Board "82"]

1. e4 {[%clk 0:03:00]}  g6 {[%clk 0:02:58]} 2. d4 {[%clk 0:02:59]}  Bg7 {[%clk 0:02:59]} 3. Nc3 {[%clk 0:03:00]}  d6 {[%clk 0:02:59]} 4. Be3 {[%clk 0:03:00]}  a6 {[%clk 0:03:00]} 5. g4 {[%clk 0:02:58]}  b5 {[%clk 0:02:56]} 6. Bg2 {[%clk 0:02:54]}  Bb7 {[%clk 0:02:57]} 7. h4 {[%clk 0:02:54]}  h5 {[%clk 0:02:55]} 8. gxh5 {[%clk 0:02:54]}  Rxh5 {[%clk 0:02:55]} 9. Bf3 {[%clk 0:02:54]}  Rh8 {[%clk 0:02:44]} 10. h5 {[%clk 0:02:54]}  gxh5 {[%clk 0:02:43]} 11. e5 {[%clk 0:02:47]}  Qc8 {[%clk 0:02:31]} 12. Rxh5 {[%clk 0:02:21]}  Rxh5 {[%clk 0:02:30]} 13. Bxb7 {[%clk 0:02:21]}  Qxb7 {[%clk 0:02:06]} 14. Qxh5 {[%clk 0:02:20]}  b4 {[%clk 0:02:00]} 15. e6 {[%clk 0:02:18]}  Kd8 {[%clk 0:01:28]} 16. Qxf7 {[%clk 0:02:12]}  Nf6 {[%clk 0:01:28]} 17. Qxg7 {[%clk 0:02:09]}  bxc3 {[%clk 0:01:27]} 18. Qf8+ {[%clk 0:02:03]}  Ne8 {[%clk 0:01:27]} 19. bxc3 {[%clk 0:01:52]}  Qb2 {[%clk 0:01:23]} 20. Rd1 {[%clk 0:01:47]}  Qxc3+ {[%clk 0:01:23]} 21. Rd2 {[%clk 0:01:47]}  Nc6 {[%clk 0:01:09]} 22. d5 {[%clk 0:01:44]}  Nb4 {[%clk 0:01:09]} 23. Bg5 {[%clk 0:01:43]}  Qe5+ {[%clk 0:01:08]} 24. Be3 {[%clk 0:01:35]}  Nxd5 {[%clk 0:01:08]} 25. Nf3 {[%clk 0:01:34]}  Qf6 {[%clk 0:00:47]} 26. Qf7 {[%clk 0:01:22]}  Nxe3 {[%clk 0:00:37]} 27. fxe3 {[%clk 0:01:23]}  c5 {[%clk 0:00:25]} 28. e4 {[%clk 0:01:11]}  Kc7 {[%clk 0:00:16]} 29. e5 {[%clk 0:01:09]}  dxe5 {[%clk 0:00:14]} 30. Rd7+ {[%clk 0:01:09]}  Kc6 {[%clk 0:00:13]} 31. Rxe7 {[%clk 0:01:07]}  Qh6 {[%clk 0:00:10]} 32. Rxe8 {[%clk 0:00:49]}  Qc1+ {[%clk 0:00:06]} 33. Ke2 {[%clk 0:00:48]}  Qxc2+ {[%clk 0:00:06]} 34. Nd2 {[%clk 0:00:49]}  e4 {[%clk 0:00:01]} 35. Qd7+ {[%clk 0:00:46]}  Kb6 {[%clk 0:00:00]} 36. Rxa8 {[%clk 0:00:45]} 1-0


[Site "https://www.chess.com"]

[Event "Titled Tuesday Blitz November 07 Early 2023"]
[White "Ziatdinov, Raset"]
[Black "Smirnov, Pavel"]
[WhiteFideId "2015323"]
[BlackFideId "4123425"]
[WhiteElo "2492"]
[BlackElo "2737"]
[Result "1-0"]
[Round "2"]
[TimeControl "180+1"]
[Date "2023.11.07"]
[WhiteClock "0:00:18"]
[BlackClock "0:00:02"]
[Board "83"]

1. e4 {[%clk 0:03:00]}  e5 {[%clk 0:03:00]} 2. Nf3 {[%clk 0:02:59]}  Nc6 {[%clk 0:03:01]} 3. Bb5 {[%clk 0:02:59]}  a6 {[%clk 0:03:00]} 4. Ba4 {[%clk 0:02:58]}  Nf6 {[%clk 0:02:59]} 5. O-O {[%clk 0:02:59]}  Be7 {[%clk 0:02:59]} 6. Re1 {[%clk 0:02:58]}  b5 {[%clk 0:03:00]} 7. Bb3 {[%clk 0:02:57]}  O-O {[%clk 0:03:01]} 8. c3 {[%clk 0:02:55]}  d5 {[%clk 0:03:01]} 9. exd5 {[%clk 0:02:54]}  Nxd5 {[%clk 0:03:02]} 10. Nxe5 {[%clk 0:02:53]}  Nxe5 {[%clk 0:03:03]} 11. Rxe5 {[%clk 0:02:52]}  c6 {[%clk 0:03:04]} 12. d4 {[%clk 0:02:51]}  Bd6 {[%clk 0:03:04]} 13. Re1 {[%clk 0:02:50]}  Qh4 {[%clk 0:03:04]} 14. g3 {[%clk 0:02:49]}  Qh3 {[%clk 0:03:04]} 15. Qf3 {[%clk 0:02:45]}  Bg4 {[%clk 0:03:03]} 16. Qg2 {[%clk 0:02:43]}  Qh5 {[%clk 0:03:04]} 17. Nd2 {[%clk 0:02:36]}  Rae8 {[%clk 0:03:01]} 18. Re4 {[%clk 0:01:50]}  Bf3 {[%clk 0:01:48]} 19. Qxf3 {[%clk 0:01:42]}  Qxf3 {[%clk 0:01:46]} 20. Nxf3 {[%clk 0:01:41]}  Rxe4 {[%clk 0:01:47]} 21. Bd2 {[%clk 0:01:40]}  Rfe8 {[%clk 0:01:46]} 22. Kf1 {[%clk 0:01:34]}  R4e7 {[%clk 0:01:44]} 23. a4 {[%clk 0:01:33]}  Nb6 {[%clk 0:01:31]} 24. axb5 {[%clk 0:01:31]}  axb5 {[%clk 0:01:32]} 25. Ra6 {[%clk 0:01:27]}  Rb8 {[%clk 0:01:31]} 26. Ne5 {[%clk 0:01:22]}  Bxe5 {[%clk 0:01:27]} 27. dxe5 {[%clk 0:01:22]}  h6 {[%clk 0:01:24]} 28. f4 {[%clk 0:01:16]}  Nc4 {[%clk 0:01:21]} 29. Bc1 {[%clk 0:01:12]}  Rc7 {[%clk 0:01:16]} 30. Bc2 {[%clk 0:01:05]}  Nb6 {[%clk 0:01:13]} 31. Be4 {[%clk 0:00:58]}  Nd5 {[%clk 0:01:11]} 32. Ke2 {[%clk 0:00:56]}  Rd8 {[%clk 0:01:04]} 33. g4 {[%clk 0:00:47]}  c5 {[%clk 0:00:56]} 34. h4 {[%clk 0:00:44]}  c4 {[%clk 0:00:51]} 35. Rd6 {[%clk 0:00:40]}  Nxc3+ {[%clk 0:00:19]} 36. bxc3 {[%clk 0:00:39]}  Rb8 {[%clk 0:00:20]} 37. f5 {[%clk 0:00:35]}  Re7 {[%clk 0:00:17]} 38. e6 {[%clk 0:00:33]}  fxe6 {[%clk 0:00:16]} 39. fxe6 {[%clk 0:00:32]}  Rbe8 {[%clk 0:00:17]} 40. Bd5 {[%clk 0:00:31]}  Ra7 {[%clk 0:00:14]} 41. Be3 {[%clk 0:00:29]}  Ra2+ {[%clk 0:00:13]} 42. Kf3 {[%clk 0:00:28]}  Kh7 {[%clk 0:00:12]} 43. Be4+ {[%clk 0:00:27]}  Kg8 {[%clk 0:00:11]} 44. Bd5 {[%clk 0:00:26]}  Kh7 {[%clk 0:00:11]} 45. Bd4 {[%clk 0:00:26]}  Rd2 {[%clk 0:00:09]} 46. Rd7 {[%clk 0:00:25]}  Rf8+ {[%clk 0:00:09]} 47. Ke3 {[%clk 0:00:22]}  Rd3+ {[%clk 0:00:07]} 48. Ke4 {[%clk 0:00:22]}  Rg8 {[%clk 0:00:06]} 49. e7 {[%clk 0:00:21]}  Re8 {[%clk 0:00:05]} 50. Be6 {[%clk 0:00:21]}  b4 {[%clk 0:00:03]} 51. Bf5+ {[%clk 0:00:20]}  Kg8 {[%clk 0:00:02]} 52. Bg6 {[%clk 0:00:19]}  bxc3 {[%clk 0:00:01]} 53. Rd8 {[%clk 0:00:18]}  c2 {[%clk 0:00:02]} 54. Rxe8# {[%clk 0:00:18]} 1-0


[Site "https://www.chess.com"]